[Event "*** Titled Tuesday Blitz"]
[Site "Chess.com"]
[Date "2020.04.07"]
[Round "9"]
[White "Trickov"]
[Black "Usurpov"]
[Result "1/2-1/2"]
[WhiteElo "2249"]
[BlackElo "2439"]
[TimeControl "180+1"]
[EndTime "14:49:14 PDT"]
[Termination "Game drawn by repetition"]

1. d4 {[%clk 0:03:00]} 1... Nf6 {[%clk 0:03:00.2]} 2. Nf3 {[%clk 0:03:00]} 2...
g6 {[%clk 0:03:00.5]} 3. c4 {[%clk 0:02:58.4]} 3... Bg7 {[%clk 0:03:00.4]} 4. g3
{[%clk 0:02:58.7]} 4... O-O {[%clk 0:02:59.6]} 5. Bg2 {[%clk 0:02:58.9]} 5... d5
{[%clk 0:03:00.2]} 6. O-O {[%clk 0:02:58.3]} 6... dxc4 {[%clk 0:03:00.4]} 7. Na3
{[%clk 0:02:58.3]} 7... Nc6 {[%clk 0:03:00.7]} 8. Nxc4 {[%clk 0:02:58]} 8... Be6
{[%clk 0:03:01]} 9. b3 {[%clk 0:02:58.4]} 9... Bd5 {[%clk 0:03:01.4]} 10. Bb2
{[%clk 0:02:57.3]} 10... a5 {[%clk 0:03:01.7]} 11. Rc1 {[%clk 0:02:56.4]} 11...
a4 {[%clk 0:03:01.5]} 12. bxa4 {[%clk 0:02:56.3]} 12... Ra6 {[%clk 0:03:01.6]}
13. Nfe5 {[%clk 0:02:54.5]} 13... Bxg2 {[%clk 0:02:59.2]} 14. Kxg2 {[%clk
0:02:54.3]} 14... Qa8 {[%clk 0:02:59.3]} 15. Nxc6 {[%clk 0:02:42.1]} 15... bxc6
{[%clk 0:03:00.2]} 16. Kg1 {[%clk 0:02:36.8]} 16... Rxa4 {[%clk 0:02:58.5]} 17.
a3 {[%clk 0:02:36.8]} 17... Rb8 {[%clk 0:02:55.5]} 18. Qc2 {[%clk 0:02:35.2]}
18... Rxc4 {[%clk 0:02:24.6]} 19. Qxc4 {[%clk 0:02:31.5]} 19... Rxb2 {[%clk
0:02:23.6]} 20. Qxc6 {[%clk 0:02:31.3]} 20... Qxa3 {[%clk 0:02:04.6]} 21. Qxc7
{[%clk 0:02:28.3]} 21... h5 {[%clk 0:01:17.1]} 22. Ra1 {[%clk 0:02:16.4]} 22...
Qd6 {[%clk 0:01:06.9]} 23. Qxd6 {[%clk 0:02:15]} 23... exd6 {[%clk 0:01:07.2]}
24. e3 {[%clk 0:02:15.1]} 24... d5 {[%clk 0:00:54.7]} 25. Rfb1 {[%clk
0:02:13.2]} 25... Rc2 {[%clk 0:00:48.5]} 26. Ra8+ {[%clk 0:02:00]} 26... Kh7
{[%clk 0:00:48.3]} 27. Rb7 {[%clk 0:01:58.7]} 27... g5 {[%clk 0:00:38]} 28. Rxf7
{[%clk 0:01:57.1]} 28... Kg6 {[%clk 0:00:37.9]} 29. Raa7 {[%clk 0:01:54.6]}
29... Bh6 {[%clk 0:00:36.6]} 30. h3 {[%clk 0:01:50.3]} 30... g4 {[%clk 0:00:36]}
31. h4 {[%clk 0:01:41.3]} 31... Ne4 {[%clk 0:00:18.9]} 32. Rac7 {[%clk
0:01:29.5]} 32... Rxc7 {[%clk 0:00:13.6]} 33. Rxc7 {[%clk 0:01:28.5]} 33... Nf6
{[%clk 0:00:10.5]} 34. Rc6 {[%clk 0:01:27]} 34... Kf5 {[%clk 0:00:09.7]} 35. Kf1
{[%clk 0:01:25.9]} 35... Bf8 {[%clk 0:00:09.5]} 36. Ke2 {[%clk 0:01:25.4]} 36...
Bb4 {[%clk 0:00:09.3]} 37. Rc8 {[%clk 0:01:24.1]} 37... Ba5 {[%clk 0:00:08.9]}
38. Rh8 {[%clk 0:01:21.5]} 38... Bc7 {[%clk 0:00:08]} 39. Kd3 {[%clk 0:01:15.2]}
39... Bd6 {[%clk 0:00:07.5]} 40. Kc2 {[%clk 0:01:11.5]} 40... Bb4 {[%clk
0:00:06.7]} 41. Kd1 {[%clk 0:01:07.9]} 41... Bd6 {[%clk 0:00:04.8]} 42. Ke2
{[%clk 0:01:05.7]} 42... Ke4 {[%clk 0:00:05]} 43. Rh6 {[%clk 0:01:01.7]} 43...
Kf5 {[%clk 0:00:05.3]} 44. Rh8 {[%clk 0:01:01.4]} 44... Be7 {[%clk 0:00:05.4]}
45. Ra8 {[%clk 0:00:55.1]} 45... Ke6 {[%clk 0:00:05.4]} 46. Ra5 {[%clk 0:00:54]}
46... Bd6 {[%clk 0:00:05.7]} 47. Rb5 {[%clk 0:00:48.4]} 47... Ne4 {[%clk
0:00:05.7]} 48. Rb7 {[%clk 0:00:44.7]} 48... Kf5 {[%clk 0:00:05.4]} 49. Rd7
{[%clk 0:00:40.8]} 49... Ke6 {[%clk 0:00:04.4]} 50. Rd8 {[%clk 0:00:37.9]} 50...
Nf6 {[%clk 0:00:04.5]} 51. Rh8 {[%clk 0:00:36.6]} 51... Kf5 {[%clk 0:00:05]} 52.
Rd8 {[%clk 0:00:33]} 52... Bb4 {[%clk 0:00:05]} 53. Rc8 {[%clk 0:00:31.7]} 53...
Be7 {[%clk 0:00:05]} 54. Rc6 {[%clk 0:00:30.9]} 54... Bd8 {[%clk 0:00:05.3]} 55.
Rd6 {[%clk 0:00:29]} 55... Bc7 {[%clk 0:00:05]} 56. Rc6 {[%clk 0:00:27.4]} 56...
Bb8 {[%clk 0:00:05.4]} 57. Rc8 {[%clk 0:00:26.4]} 57... Bd6 {[%clk 0:00:05.2]}
58. Rd8 {[%clk 0:00:26.4]} 58... Ke6 {[%clk 0:00:05.2]} 59. Rh8 {[%clk
0:00:25.7]} 59... Be7 {[%clk 0:00:05.3]} 60. Ra8 {[%clk 0:00:25.2]} 60... Kf7
{[%clk 0:00:05.5]} 61. Ra7 {[%clk 0:00:25.1]} 61... Ke6 {[%clk 0:00:05.8]} 62.
Ra6+ {[%clk 0:00:25.2]} 62... Bd6 {[%clk 0:00:06.4]} 63. Ra8 {[%clk 0:00:24.6]}
63... Ne4 {[%clk 0:00:06.9]} 64. Rh8 {[%clk 0:00:23.6]} 64... Nf6 {[%clk
0:00:07]} 65. Ra8 {[%clk 0:00:23.7]} 65... Kf5 {[%clk 0:00:07.1]} 66. Ra6 {[%clk
0:00:23.5]} 66... Bb4 {[%clk 0:00:07.2]} 67. Rb6 {[%clk 0:00:23.1]} 67... Bc3
{[%clk 0:00:07.3]} 68. Rb5 {[%clk 0:00:23.1]} 68... Ba1 {[%clk 0:00:07]} 69. Rb3
{[%clk 0:00:22.6]} 69... Ne4 {[%clk 0:00:06.3]} 70. Rb5 {[%clk 0:00:21.8]} 70...
Ke6 {[%clk 0:00:06.2]} 71. Rb6+ {[%clk 0:00:21.1]} 71... Kf5 {[%clk 0:00:06.2]}
72. Ra6 {[%clk 0:00:20.2]} 72... Bc3 {[%clk 0:00:05.8]} 73. Rc6 {[%clk
0:00:19.5]} 73... Bb4 {[%clk 0:00:06]} 74. Rb6 {[%clk 0:00:19.3]} 74... Bd6
{[%clk 0:00:05.5]} 75. Rc6 {[%clk 0:00:19.1]} 75... Ke6 {[%clk 0:00:05.3]} 76.
Ra6 {[%clk 0:00:19]} 76... Kf5 {[%clk 0:00:04.5]} 77. Rc6 {[%clk 0:00:18.6]}
77... Ke6 {[%clk 0:00:04.2]} 78. Ra6 {[%clk 0:00:19]} 78... Nf6 {[%clk
0:00:04.6]} 79. Rc6 {[%clk 0:00:18.8]} 79... Nd7 {[%clk 0:00:05]} 80. Ra6 {[%clk
0:00:19]} 80... Nf6 {[%clk 0:00:05.2]} 1/2-1/2

[Event "*** Titled Tuesday Blitz"]
[Site "Chess.com"]
[Date "2020.04.07"]
[Round "9"]
[White "Sviridov_Valery"]
[Black "DanielRensch"]
[Result "1-0"]
[WhiteElo "2793"]
[BlackElo "2567"]
[TimeControl "180+1"]
[EndTime "14:49:20 PDT"]
[Termination "Sviridov_Valery won by resignation"]

1. Nf3 {[%clk 0:03:00.9]} 1... Nf6 {[%clk 0:02:59.2]} 2. d4 {[%clk 0:03:00.6]}
2... c5 {[%clk 0:02:59.1]} 3. d5 {[%clk 0:02:58.1]} 3... b5 {[%clk 0:02:59.1]}
4. c4 {[%clk 0:02:52.7]} 4... bxc4 {[%clk 0:02:59.1]} 5. Nc3 {[%clk 0:02:52.2]}
5... g6 {[%clk 0:02:57.8]} 6. e4 {[%clk 0:02:51.8]} 6... d6 {[%clk 0:02:58.1]}
7. Bxc4 {[%clk 0:02:51.5]} 7... Bg7 {[%clk 0:02:57.9]} 8. O-O {[%clk 0:02:51.4]}
8... O-O {[%clk 0:02:57.5]} 9. h3 {[%clk 0:02:48.8]} 9... Nbd7 {[%clk
0:02:56.4]} 10. Re1 {[%clk 0:02:48.9]} 10... Ne5 {[%clk 0:02:56.4]} 11. Nxe5
{[%clk 0:02:48.6]} 11... dxe5 {[%clk 0:02:57.3]} 12. Be3 {[%clk 0:02:48.9]}
12... Rb8 {[%clk 0:02:57.1]} 13. Qc2 {[%clk 0:02:42.3]} 13... Nd7 {[%clk
0:02:50]} 14. Na4 {[%clk 0:02:38.8]} 14... Qc7 {[%clk 0:02:45.6]} 15. Rac1
{[%clk 0:02:36]} 15... Bb7 {[%clk 0:02:34.7]} 16. Bb5 {[%clk 0:02:25.8]} 16...
Rfc8 {[%clk 0:02:26.1]} 17. Bxd7 {[%clk 0:02:25.2]} 17... Qxd7 {[%clk
0:02:26.2]} 18. Nxc5 {[%clk 0:02:25.8]} 18... Qb5 {[%clk 0:02:16.6]} 19. Qe2
{[%clk 0:02:24.4]} 19... Ba8 {[%clk 0:01:46.8]} 20. Qxb5 {[%clk 0:02:16.5]}
20... Rxb5 {[%clk 0:01:47.7]} 21. b3 {[%clk 0:02:15.9]} 21... e6 {[%clk
0:01:42.8]} 22. dxe6 {[%clk 0:02:12.7]} 22... Bf8 {[%clk 0:01:42.8]} 23. exf7+
{[%clk 0:02:12]} 23... Kxf7 {[%clk 0:01:40.9]} 24. Nd3 {[%clk 0:02:02.8]} 24...
Rxc1 {[%clk 0:01:36.9]} 25. Bxc1 {[%clk 0:02:03.7]} 25... Ke6 {[%clk 0:01:26.8]}
26. Bb2 {[%clk 0:02:00.3]} 26... Bd6 {[%clk 0:01:26.5]} 27. f3 {[%clk
0:01:59.9]} 27... a5 {[%clk 0:01:26.1]} 28. Bc3 {[%clk 0:01:47.4]} 28... Bc6
{[%clk 0:01:19.6]} 29. Rc1 {[%clk 0:01:44.7]} 29... Bd7 {[%clk 0:01:19]} 30. Kf2
{[%clk 0:01:38.7]} 30... h5 {[%clk 0:01:18.7]} 31. Ke2 {[%clk 0:01:38.3]} 31...
Be8 {[%clk 0:01:13.9]} 32. Bd2 {[%clk 0:01:37.6]} 32... Bd7 {[%clk 0:01:12.9]}
33. Rc2 {[%clk 0:01:35.6]} 33... Be8 {[%clk 0:01:05.5]} 34. Rc4 {[%clk 0:01:35]}
34... Bd7 {[%clk 0:01:04.9]} 35. Be3 {[%clk 0:01:32.8]} 35... Rb7 {[%clk
0:01:01.2]} 36. Kf2 {[%clk 0:01:02.4]} 36... Bb5 {[%clk 0:00:57.9]} 37. Nc5+
{[%clk 0:01:01.9]} 37... Bxc5 {[%clk 0:00:57.5]} 38. Rxc5 {[%clk 0:01:02.8]}
38... a4 {[%clk 0:00:56.7]} 39. b4 {[%clk 0:01:02.6]} 39... Be8 {[%clk
0:00:49.4]} 40. Bd2 {[%clk 0:00:59.1]} 40... Rb5 {[%clk 0:00:43.1]} 41. Rc8
{[%clk 0:00:56.2]} 41... Bd7 {[%clk 0:00:39.2]} 42. Rc7 {[%clk 0:00:55.9]} 42...
Rb6 {[%clk 0:00:35]} 43. Bc3 {[%clk 0:00:43.6]} 43... Rc6 {[%clk 0:00:34.9]} 44.
Bxe5 {[%clk 0:00:37.4]} 44... Kxe5 {[%clk 0:00:32.9]} 45. Rxd7 {[%clk
0:00:37.4]} 45... Rc2+ {[%clk 0:00:33.4]} 46. Ke3 {[%clk 0:00:37.9]} 46... Rxa2
{[%clk 0:00:34.1]} 47. Rd5+ {[%clk 0:00:33.1]} 47... Ke6 {[%clk 0:00:33.7]} 48.
g4 {[%clk 0:00:32.4]} 48... h4 {[%clk 0:00:34.1]} 49. Ra5 {[%clk 0:00:31.5]}
49... Rh2 {[%clk 0:00:30.9]} 50. Ra6+ {[%clk 0:00:31.8]} 50... Kf7 {[%clk
0:00:30.5]} 51. Rxa4 {[%clk 0:00:32.2]} 51... Rxh3 {[%clk 0:00:30.9]} 52. Ra7+
{[%clk 0:00:30.8]} 52... Kf6 {[%clk 0:00:29.9]} 53. Ra6+ {[%clk 0:00:30.1]}
53... Kg5 {[%clk 0:00:29.3]} 54. Ra5+ {[%clk 0:00:30.2]} 54... Kf6 {[%clk
0:00:29.3]} 55. g5+ {[%clk 0:00:30.1]} 55... Ke6 {[%clk 0:00:29.2]} 56. Ra6+
{[%clk 0:00:29.9]} 56... Kf7 {[%clk 0:00:29.7]} 57. Kf4 {[%clk 0:00:28.3]} 57...
Rh1 {[%clk 0:00:29.2]} 58. Ra7+ {[%clk 0:00:28.6]} 58... Ke6 {[%clk 0:00:29.1]}
59. Rh7 {[%clk 0:00:27.7]} 59... h3 {[%clk 0:00:27]} 60. Rg7 {[%clk 0:00:25.7]}
60... h2 {[%clk 0:00:26.2]} 61. Rxg6+ {[%clk 0:00:26]} 61... Kd7 {[%clk
0:00:25.3]} 62. Rh6 {[%clk 0:00:26.9]} 62... Ke7 {[%clk 0:00:25.2]} 63. Kg3
{[%clk 0:00:26.9]} 63... Rg1+ {[%clk 0:00:23.2]} 64. Kxh2 {[%clk 0:00:27.1]}
64... Rxg5 {[%clk 0:00:24.1]} 65. Rh3 {[%clk 0:00:27.3]} 65... Rb5 {[%clk
0:00:24.3]} 66. Kg3 {[%clk 0:00:27.1]} 66... Rxb4 {[%clk 0:00:24.6]} 67. Kf4
{[%clk 0:00:27.7]} 67... Rb5 {[%clk 0:00:23.7]} 68. Rh7+ {[%clk 0:00:27.3]}
68... Kf6 {[%clk 0:00:23.9]} 69. Ra7 {[%clk 0:00:28.2]} 69... Rc5 {[%clk
0:00:23.7]} 70. Kg4 {[%clk 0:00:27.4]} 70... Ke5 {[%clk 0:00:22.1]} 71. Re7+
{[%clk 0:00:25.7]} 71... Kd4 {[%clk 0:00:22.2]} 72. f4 {[%clk 0:00:19.6]} 72...
Ke3 {[%clk 0:00:21.7]} 73. e5 {[%clk 0:00:19.1]} 73... Rc4 {[%clk 0:00:20.9]}
74. Rf7 {[%clk 0:00:19.5]} 74... Rc1 {[%clk 0:00:17.9]} 75. e6 {[%clk
0:00:19.4]} 75... Rg1+ {[%clk 0:00:17.6]} 76. Kf5 {[%clk 0:00:19.8]} 76... Kd4
{[%clk 0:00:17.6]} 77. e7 {[%clk 0:00:19.6]} 77... Re1 {[%clk 0:00:17.4]} 78.
Kg6 {[%clk 0:00:17.4]} 78... Re6+ {[%clk 0:00:13.7]} 79. Kg7 {[%clk 0:00:15.9]}
79... Kd5 {[%clk 0:00:13.9]} 80. f5 {[%clk 0:00:16.2]} 80... Re1 {[%clk
0:00:14.2]} 81. f6 {[%clk 0:00:16.7]} 81... Kd6 {[%clk 0:00:13.8]} 82. Rf8
{[%clk 0:00:17]} 82... Rg1+ {[%clk 0:00:14]} 83. Kf7 {[%clk 0:00:17]} 83... Re1
{[%clk 0:00:13.8]} 84. e8=Q {[%clk 0:00:17]} 84... Rxe8 {[%clk 0:00:12.2]} 85.
Rxe8 {[%clk 0:00:17.9]} 1-0